bitfinex-derivatives/quotes_SOLF0:USTF0_20230902
["timestamp","ask_amount","ask_price","bid_price","bid_amount"]
[1693614353749,123.27,19.387,19.379,15.48]
[1693614353955,123.27,19.387,19.376,123.27]
[1693614353956,123.27,19.387,19.377,15.48]
[1693614354156,0.0621531,19.389,19.379,138.75]
[1693614354460,0.0621531,19.389,19.38,9.47834707]
[1693614354659,0.0621531,19.389,19.38,29.59304707]
[1693614354856,0.0621531,19.389,19.381,9.47834707]
[1693614355364,21.4415,19.399,19.381,9.47834707]
[1693614355665,123.27,19.394,19.383,15.48]
[1693614355961,123.27,19.397,19.384,133.20042557]
[1693614356154,123.27,19.397,19.385,0.45454546]
[1693614357263,541.57194429,19.404,19.387,110.79]
[1693614357463,110.79,19.394,19.387,110.79]
[1693614358159,110.79,19.397,19.389,110.79]
[1693614358359,500.0,19.404,19.38,0.45454546]
[1693614358559,110.79,19.397,19.389,110.79]
[1693614361963,110.79,19.397,19.391,15.46]
[1693614363066,110.79,19.398,19.391,15.46]
[1693614363665,0.06213654,19.394,19.391,15.46]
[1693614364969,110.79,19.398,19.391,15.46]
[1693614365360,110.79,19.401,19.394,15.46]
[1693614366866,110.79,19.401,19.394,15.52213636]
[1693614372074,110.79,19.4,19.394,0.06213636]
[1693614373374,110.79,19.401,19.394,0.06213636]
[1693614375075,110.79,19.402,19.394,15.52213636]
[1693614389878,110.79,19.404,19.397,15.46]
[1693614393077,638.1448137,19.405,19.397,15.46]
[1693614398983,527.3548137,19.405,19.4,15.46]
[1693614399883,27.3548137,19.405,19.4,15.46]
[1693614400079,21.7163,19.408,19.404,110.79]
[1693614400485,142.38765794,19.413,19.404,110.79]
[1693614402083,110.79,19.412,19.404,110.79]
[1693614403281,142.38765794,19.413,19.404,110.79]
[1693614403488,142.38765794,19.413,19.406,15.46]
[1693614404995,31.59765794,19.413,19.406,110.79]
[1693614411994,31.59765794,19.413,19.408,110.79]
[1693614416697,142.38765794,19.413,19.405,110.79]
[1693614418801,110.79,19.409,19.401,110.79]
[1693614422006,31.59765794,19.413,19.4,110.79]
[1693614422007,110.79,19.408,19.4,110.79]
[1693614423210,31.59765794,19.413,19.401,110.79]
[1693614423211,110.79,19.409,19.401,110.79]
[1693614423509,21.0061,19.407,19.401,110.79]
[1693614430707,500.0,19.405,19.401,110.79]
[1693614431906,500.0,19.405,19.398,110.79]
[1693614433213,500.0,19.405,19.397,110.79]
[1693614436811,21.0061,19.407,19.4,110.79]
[1693614448227,500.0,19.405,19.397,110.79]
[1693614450537,110.79,19.406,19.397,110.79]
[1693614452732,500.0,19.405,19.397,110.79]
[1693614453433,500.0,19.405,19.394,0.06213617]
[1693614453434,110.79,19.404,19.396,110.79]
[1693614461943,500.0,19.405,19.398,110.79]
[1693614471954,610.79,19.405,19.397,110.79]
[1693614478958,610.79,19.405,19.398,15.46]
[1693614483260,110.79,19.405,19.398,15.46]
[1693614483458,131.7961,19.407,19.4,15.46]
[1693614491071,110.79,19.41,19.403,15.46]
[1693614491571,20.8444,19.412,19.406,15.46]
[1693614500373,20.8444,19.412,19.405,110.79]
[1693614500572,110.79,19.409,19.403,15.46]
[1693614511982,110.79,19.411,19.403,110.79]
[1693614518189,110.79,19.415,19.407,110.79]
[1693614518691,110.79,19.418,19.41,110.79]
[1693614519284,500.0,19.416,19.41,110.79]
[1693614519485,500.0,19.416,19.401,20.6868]
[1693614519486,110.79,19.415,19.407,110.79]
[1693614521993,110.79,19.414,19.406,15.46]
[1693614522187,132.6053,19.414,19.406,15.46]
[1693614523893,132.6053,19.414,19.405,110.79]
[1693614525391,110.79,19.413,19.405,110.79]
[1693614526594,110.79,19.41,19.402,110.79]
[1693614529694,110.79,19.41,19.403,15.46]
[1693614531299,49.88635268,19.414,19.407,110.79]
[1693614531494,21.8153,19.414,19.407,110.79]
[1693614531697,110.79,19.415,19.407,110.79]
[1693614532098,610.79,19.416,19.409,15.46]
[1693614535103,110.79,19.416,19.409,15.46]
[1693614535296,110.79,19.416,19.409,15.91454546]
[1693614542001,110.79,19.417,19.411,15.45]
[1693614543707,110.79,19.418,19.411,110.79]
[1693614550509,21.8172,19.42,19.414,15.45]
[1693614561910,21.8172,19.42,19.413,110.79]
[1693614564413,21.8172,19.42,19.416,110.79]
[1693614564809,152.41306899,19.424,19.416,110.79]
[1693614572015,152.41306899,19.424,19.417,110.79]
[1693614573721,41.62306899,19.424,19.417,110.79]
[1693614574021,110.79,19.425,19.417,110.79]
[1693614584729,40.91499226,19.426,19.419,110.79]
[1693614584921,610.79,19.427,19.419,110.79]
[1693614585123,610.79,19.427,19.42,15.45]
[1693614585324,610.79,19.427,19.408,21.0162]
[1693614585325,500.0,19.427,19.422,110.79]
[1693614585921,610.79,19.427,19.419,110.79]
[1693614589230,610.79,19.427,19.42,15.45]
[1693614590633,110.79,19.427,19.42,15.45]
[1693614591928,110.79,19.426,19.418,110.79]
[1693614593034,110.79,19.424,19.416,110.79]
[1693614594434,500.0,19.427,19.395,15.45]
[1693614594736,500.0,19.427,19.408,110.79]
[1693614594737,110.79,19.416,19.408,110.79]
[1693614601539,500.0,19.417,19.398,0.45454546]
[1693614601733,110.79,19.409,19.4,126.25]
[1693614602039,110.79,19.41,19.402,110.79]
[1693614605143,110.79,19.407,19.399,110.79]
[1693614606541,110.79,19.411,19.403,15.46]
[1693614606746,110.79,19.413,19.405,110.79]
[1693614606948,110.79,19.413,19.412,0.12415636]
[1693614607138,31.55359044,19.414,19.412,0.12415636]
[1693614617357,110.85206577,19.416,19.412,0.12415636]
[1693614617659,110.79,19.416,19.409,110.79]
[1693614618651,0.06206577,19.416,19.413,15.46]
[1693614618851,0.06206577,19.416,19.415,126.25]
[1693614619059,110.79,19.423,19.416,15.46]
[1693614622061,110.79,19.423,19.416,15.52206561]
[1693614623457,110.79,19.426,19.418,110.79]
[1693614623653,110.79,19.426,19.419,0.45454546]
[1693614624557,110.79,19.428,19.42,110.79]
[1693614624863,110.79,19.428,19.421,0.45454546]
[1693614627662,110.79,19.452,19.429,500.0]
[1693614627863,20.0343,19.453,19.445,110.79]
[1693614628064,110.91388377,19.455,19.445,110.79]
[1693614629567,500.0,19.448,19.442,110.79]
[1693614629766,500.0,19.448,19.419,500.0]
[1693614629767,110.79,19.446,19.436,110.79]
[1693614631969,110.79,19.445,19.436,110.79]
[1693614632367,145.8807,19.447,19.434,124.04]
[1693614634164,124.04,19.444,19.432,124.04]
[1693614642168,165.08938271,19.444,19.432,124.04]
[1693614645571,124.04,19.442,19.429,124.49454546]
[1693614645870,124.04,19.442,19.43,0.45454546]
[1693614648178,500.0,19.439,19.43,0.45454546]
[1693614648377,624.04,19.439,19.426,124.04]
[1693614648578,20.3098,19.438,19.423,124.04]
[1693614648876,0.0620271,19.428,19.423,124.04]
[1693614652174,0.0620271,19.428,19.424,0.124079]
[1693614662190,124.04,19.426,19.424,0.06201323]
[1693614662396,124.04,19.426,19.414,9.46372428]
[1693614663695,124.04,19.426,19.413,124.04]
[1693614663895,124.04,19.426,19.414,9.46372557]
[1693614664291,124.04,19.426,19.413,124.04]
[1693614666898,124.04,19.426,19.424,0.12407899]
[1693614677304,111.87,19.425,19.424,0.12407899]
[1693614683712,153.61665292,19.425,19.424,0.12407899]
[1693614692524,153.61665292,19.425,19.414,15.45]
[1693614692724,111.87,19.421,19.414,15.45]
[1693614696921,111.87,19.421,19.42,15.57410451]
[1693614701927,111.87,19.423,19.421,15.44]
[1693614707432,111.87,19.423,19.416,15.44]
[1693614711433,111.87,19.42,19.413,15.44]
[1693614711933,111.87,19.419,19.416,0.18619345]
[1693614718338,111.87,19.417,19.416,0.18619345]
[1693614722434,111.87,19.417,19.413,15.44]
[1693614722636,111.87,19.417,19.412,15.44]
[1693614722941,111.87,19.414,19.411,15.44]
[1693614723136,111.87,19.414,19.412,0.45454546]
[1693614723342,111.87,19.414,19.411,15.44]
[1693614723540,111.87,19.414,19.412,0.45454546]
[1693614723738,111.87,19.414,19.407,9.91922089]
[1693614723939,111.87,19.413,19.409,15.44]
[1693614724139,111.87,19.413,19.411,15.44]
[1693614724438,111.87,19.413,19.412,0.45454546]
[1693614724638,111.87,19.413,19.412,0.24830762]
[1693614725041,111.87,19.413,19.412,0.70285308]
[1693614725242,111.87,19.413,19.412,0.24830762]
[1693614725438,111.87,19.413,19.412,0.70285308]
[1693614725745,111.87,19.413,19.412,0.24830762]
[1693614725933,111.87,19.413,19.412,0.70285308]
[1693614726139,111.87,19.413,19.412,0.24830762]
[1693614726338,111.87,19.413,19.412,0.70285308]
[1693614726542,111.87,19.413,19.412,0.24830762]
[1693614726739,111.87,19.413,19.412,0.70285308]
[1693614727043,111.87,19.413,19.412,0.24830762]
[1693614727240,111.87,19.413,19.412,0.70285308]
[1693614727543,111.87,19.413,19.412,0.24830762]
[1693614727743,111.87,19.413,19.412,0.70285308]
[1693614727948,111.87,19.413,19.412,0.24830762]
[1693614728244,111.87,19.413,19.412,0.70285308]
[1693614728446,111.87,19.413,19.412,0.24830762]
[1693614728748,111.87,19.413,19.412,0.70285308]
[1693614728943,111.87,19.413,19.412,0.24830762]
[1693614732549,111.87,19.413,19.408,0.31044665]
[1693614732845,111.87,19.409,19.408,0.31044665]
[1693614739049,111.87,19.409,19.404,0.37261057]
[1693614739249,111.87,19.406,19.404,0.37261057]
[1693614748358,111.87,19.405,19.404,0.37261057]
[1693614753561,111.87,19.405,19.399,15.45]
[1693614753759,111.87,19.403,19.401,15.45]
[1693614753955,111.87,19.403,19.399,0.45454546]
[1693614754161,111.87,19.403,19.398,9.92270675]
[1693614754363,111.87,19.403,19.399,9.92270675]
[1693614754562,111.87,19.403,19.401,15.45]
[1693614754763,111.87,19.403,19.398,0.45454546]
[1693614754960,111.87,19.403,19.398,15.45]
[1693614755161,111.87,19.403,19.399,0.45454546]
[1693614755464,111.87,19.403,19.398,15.45]
[1693614755662,111.87,19.403,19.399,0.45454546]
[1693614755961,111.87,19.403,19.398,15.45]
[1693614756157,111.87,19.403,19.399,0.45454546]
[1693614756362,111.87,19.403,19.398,15.45]
[1693614756563,111.87,19.403,19.399,0.45454546]
[1693614756861,111.87,19.403,19.396,9.92466354]
[1693614757062,111.87,19.403,19.398,15.45]
[1693614757259,111.87,19.403,19.399,0.45454546]
[1693614757459,111.87,19.403,19.396,9.92465121]
[1693614757661,111.87,19.403,19.398,15.45]
[1693614757862,111.87,19.403,19.399,0.45454546]
[1693614758061,111.87,19.403,19.396,9.92464285]
[1693614758263,111.87,19.403,19.398,15.45]
[1693614758457,111.87,19.403,19.399,0.45454546]
[1693614758656,111.87,19.403,19.396,9.92493314]
[1693614758960,111.87,19.403,19.398,15.45]
[1693614759261,111.87,19.403,19.399,0.45454546]
[1693614759564,111.87,19.403,19.396,9.92488183]
[1693614759763,111.87,19.402,19.398,15.45]
[1693614760062,111.87,19.402,19.399,0.45454546]
[1693614760263,111.87,19.402,19.395,15.45]
[1693614760264,111.87,19.402,19.396,9.92486345]
[1693614760455,111.87,19.402,19.398,15.45]
[1693614760862,111.87,19.402,19.398,0.45454546]
[1693614761062,111.87,19.402,19.396,9.92484273]
[1693614761263,111.87,19.402,19.398,15.45]
[1693614761666,111.87,19.402,19.398,0.45454546]
[1693614761867,111.87,19.402,19.396,9.92482404]
[1693614762067,111.87,19.402,19.398,15.45]
[1693614762464,111.87,19.402,19.395,15.90454546]
[1693614762763,111.87,19.402,19.396,9.92480768]
[1693614762959,111.87,19.402,19.398,15.45]
[1693614763460,111.87,19.402,19.398,0.45454546]
[1693614763662,111.87,19.402,19.396,9.92478905]
[1693614763961,111.87,19.402,19.398,15.45]
[1693614764365,111.87,19.402,19.395,15.90454546]
[1693614764560,111.87,19.402,19.396,9.92479867]
[1693614770770,111.87,19.402,19.396,9.47025321]
[1693614776368,111.9320906,19.408,19.401,15.46]
[1693614776671,111.87,19.414,19.405,111.87]
[1693614777073,111.87,19.416,19.409,15.46]
[1693614782774,111.87,19.414,19.406,111.87]
[1693614782974,111.87,19.414,19.407,9.4655171]
[1693614783479,0.06209025,19.408,19.407,9.4655171]
[1693614784677,0.06209025,19.408,19.406,111.87]
[1693614788076,0.06209025,19.408,19.405,0.45454546]
[1693614788077,111.93209025,19.408,19.405,0.45454546]
[1693614788280,111.87,19.406,19.398,15.46]
[1693614788481,111.87,19.406,19.399,9.46851079]
[1693614788881,111.93209025,19.408,19.401,15.46]
[1693614791975,0.06209025,19.408,19.403,15.45]
[1693614797588,111.87,19.41,19.403,15.45]
[1693614798590,0.06209025,19.408,19.403,15.45]
[1693614814595,0.06209025,19.408,19.403,56.62525772]
[1693614820505,0.06209025,19.408,19.403,15.45]
[1693614821994,111.87,19.407,19.401,15.46]
[1693614832112,111.87,19.406,19.401,15.46]
[1693614839515,0.06209025,19.408,19.401,15.46]
[1693614842413,111.87,19.409,19.401,15.46]
[1693614842609,111.87,19.409,19.403,15.46]
[1693614842809,111.87,19.412,19.404,0.45454546]
[1693614843009,111.87,19.412,19.404,9.92080923]
[1693614843210,111.87,19.412,19.405,0.45454546]
[1693614844214,111.87,19.412,19.404,9.92079041]
[1693614844419,111.87,19.412,19.405,0.45454546]
[1693614844618,111.87,19.412,19.405,29.07284631]
[1693614844820,111.87,19.412,19.406,0.45454546]
[1693614848725,111.87,19.412,19.405,28.61830085]
[1693614859734,0.06209009,19.408,19.405,28.61830085]
[1693614875646,0.06209009,19.408,19.401,127.77454546]
[1693614875647,111.87,19.407,19.398,111.87]
[1693614876346,111.87,19.404,19.398,40.55641421]
[1693614876643,111.87,19.404,19.396,111.87]
[1693614877244,111.87,19.404,19.396,388.98271925]
[1693614877446,111.87,19.404,19.396,111.87]
[1693614879053,111.87,19.402,19.393,154.07917052]
[1693614879252,111.87,19.402,19.394,286.58505536]
[1693614879449,111.87,19.402,19.395,286.58505536]
[1693614879750,111.87,19.402,19.393,111.87]
[1693614879952,111.87,19.402,19.394,9.47115523]
[1693614881950,111.87,19.401,19.394,9.47115523]
[1693614882255,111.87,19.401,19.392,430.29171197]
[1693614882449,111.87,19.401,19.393,286.58515374]
[1693614882659,111.87,19.401,19.394,9.47115569]
[1693614900362,111.87,19.401,19.395,9.47115569]
[1693614900666,111.87,19.401,19.392,152.72316846]
[1693614900863,111.87,19.401,19.393,9.47167602]
[1693614901260,111.87,19.401,19.393,286.60046562]
[1693614901459,111.87,19.401,19.394,9.47167602]
[1693614903068,111.87,19.399,19.39,111.87]
[1693614904271,111.87,19.399,19.39,153.38752577]
[1693614904965,111.87,19.397,19.391,277.17653342]
[1693614905164,111.87,19.397,19.388,131.9551]
[1693614905364,111.87,19.397,19.389,9.4736275]
[1693614908064,111.87,19.397,19.388,111.87]
[1693614908873,111.87,19.397,19.388,152.51329896]
[1693614909875,111.87,19.397,19.389,9.47379588]
[1693614912076,111.87,19.396,19.389,9.47379588]
[1693614912275,111.87,19.396,19.388,40.64329896]
[1693614912570,111.87,19.396,19.387,111.87]
[1693614912774,111.87,19.396,19.388,9.47377616]
[1693614916470,111.87,19.396,19.388,286.65171954]
[1693614916677,111.87,19.396,19.389,286.65171954]
[1693614916877,111.87,19.396,19.39,286.65171954]
[1693614917181,111.87,19.396,19.387,152.9998969]
[1693614917373,111.87,19.396,19.388,286.65147098]
[1693614917571,111.87,19.396,19.389,9.47367848]
[1693614920383,111.87,19.395,19.389,9.47367848]
[1693614922881,111.87,19.395,19.389,24.94367848]
[1693614923082,111.87,19.395,19.389,15.47]
[1693614923283,111.87,19.395,19.388,15.47]
[1693614923480,111.87,19.396,19.389,9.47364864]
[1693614925582,111.87,19.396,19.387,152.9998969]
[1693614925783,111.87,19.396,19.388,9.47369956]
[1693614927178,111.87,19.396,19.388,24.94369956]
[1693614927390,111.87,19.396,19.389,9.47369956]
[1693614931987,111.87,19.395,19.389,9.47369956]
[1693614935397,111.87,19.395,19.388,15.47]
[1693614937998,111.87,19.395,19.387,333.77629059]
[1693614938195,111.87,19.395,19.388,9.47364684]
[1693614939597,111.87,19.395,19.388,24.94364684]
[1693614939898,111.87,19.395,19.388,15.47]
[1693614941996,111.87,19.396,19.388,127.34]
[1693614942299,111.87,19.396,19.388,404.51639369]
[1693614950602,20.9804,19.402,19.388,404.51639369]
[1693614950603,111.87,19.399,19.391,15.47]
[1693614950910,111.87,19.402,19.395,15.47]
[1693614955117,111.87,19.402,19.394,111.87]
[1693614955118,111.93209969,19.405,19.398,15.46]
[1693614955317,111.87,19.411,19.404,15.46]
[1693614955709,111.87,19.414,19.405,111.87]
[1693614961417,111.87,19.416,19.409,15.46]
[1693614965124,111.87,19.416,19.409,111.87]
[1693614969532,111.87,19.42,19.413,15.46]
[1693614969921,111.87,19.424,19.417,15.46]
[1693614971928,111.87,19.424,19.417,111.87]
[1693614972134,111.87,19.425,19.417,111.87]
[1693614976438,111.87,19.427,19.419,111.87]
[1693614979144,111.87,19.427,19.421,15.46]
[1693614979342,111.87,19.427,19.42,15.46]
[1693614981443,111.87,19.427,19.419,111.87]
[1693614985143,132.3364,19.429,19.421,111.87]
[1693614985343,20.4664,19.429,19.422,111.87]
[1693614985738,111.87,19.43,19.422,111.87]
[1693614995148,111.87,19.431,19.423,111.87]
[1693614996146,62.84565395,19.436,19.426,111.87]
[1693614996147,111.87,19.434,19.426,111.87]
[1693615000345,111.87,19.434,19.427,111.87]
[1693615002051,111.87,19.433,19.426,111.87]
[1693615009567,111.87,19.435,19.428,111.87]
[1693615010266,22.03,19.436,19.432,111.87]
[1693615010468,20.3663,19.441,19.434,111.87]
[1693615010967,41.1122554,19.442,19.434,111.87]
[1693615011163,111.99395043,19.444,19.434,111.87]
[1693615011370,111.87,19.44,19.432,111.87]
[1693615015563,111.87,19.442,19.433,111.87]
[1693615015764,20.1429,19.439,19.433,111.87]
[1693615015964,111.87,19.442,19.433,111.87]
[1693615018473,111.87,19.436,19.428,111.87]
[1693615021971,111.87,19.437,19.429,111.87]
[1693615023881,500.0,19.439,19.432,111.87]
[1693615025274,111.87,19.438,19.43,111.87]
[1693615035392,25.71884,19.441,19.436,111.87]
[1693615035584,73.47115275,19.443,19.436,111.87]
[1693615038788,41.90319257,19.443,19.436,111.87]
[1693615038993,111.99395043,19.444,19.436,111.87]
[1693615040687,153.03921791,19.444,19.436,111.87]
[1693615043693,111.99395043,19.444,19.436,111.87]
[1693615043992,111.99395043,19.444,19.431,15.44]
[1693615043993,0.12395043,19.444,19.439,111.87]
[1693615047392,111.99395043,19.444,19.435,111.87]
[1693615047591,111.99395043,19.444,19.43,0.45454546]
[1693615047592,111.87,19.442,19.434,111.87]
[1693615047794,144.24738495,19.442,19.434,111.87]
[1693615052002,111.87,19.441,19.433,111.87]
[1693615056104,111.87,19.439,19.431,111.87]
[1693615061902,111.87,19.439,19.421,21.9131]
[1693615061903,111.87,19.436,19.424,0.45454546]
[1693615062108,111.87,19.435,19.427,111.87]
[1693615069615,111.87,19.431,19.423,111.87]
[1693615080722,111.87,19.431,19.423,15.44]
[1693615091726,111.87,19.433,19.425,111.87]
[1693615092731,111.87,19.43,19.423,15.44]
[1693615108340,111.87,19.429,19.423,15.44]
[1693615130560,111.87,19.432,19.425,15.44]
[1693615130757,132.2482,19.435,19.427,111.87]
[1693615130957,20.3782,19.435,19.431,15.44]
[1693615131157,111.87,19.438,19.431,15.44]
[1693615136959,20.336,19.441,19.434,15.43]
[1693615137363,144.24738495,19.442,19.434,15.43]
[1693615143067,111.87,19.442,19.434,15.43]
[1693615145270,111.87,19.439,19.431,15.43]
[1693615145471,111.87,19.435,19.427,111.87]
[1693615145768,27.25487105,19.439,19.421,41.32578485]
[1693615145769,111.87,19.436,19.428,112.32454546]
[1693615145965,111.87,19.436,19.428,111.87]
[1693615146962,111.87,19.436,19.428,112.32454546]
[1693615147164,111.87,19.436,19.428,111.87]
[1693615147567,111.87,19.436,19.429,15.43]
[1693615150864,20.226,19.438,19.431,111.87]
[1693615151069,0.12394976,19.444,19.438,15.43]
[1693615151263,0.12394976,19.444,19.438,111.87]
[1693615151971,0.12394976,19.444,19.44,111.87]
[1693615152164,0.12394976,19.444,19.441,15.43]
[1693615152370,111.87,19.452,19.444,15.43]
[1693615152668,111.87,19.451,19.444,111.87]
[1693615154166,20.2163,19.457,19.441,111.87]
[1693615154167,111.87,19.449,19.441,111.87]
[1693615154369,111.87,19.445,19.437,111.87]
[1693615154674,111.87,19.442,19.434,111.87]
[1693615157170,20.7658,19.448,19.428,111.87]
[1693615157372,124.14,19.439,19.432,0.24804349]
[1693615159777,124.14,19.441,19.432,0.24804349]
[1693615162077,124.14,19.44,19.432,0.24804349]
[1693615171387,124.14,19.44,19.429,15.43]
[1693615171685,21.7521,19.439,19.429,15.43]
[1693615172381,0.06199917,19.436,19.429,15.43]
[1693615175779,0.06199917,19.436,19.432,0.12402313]
[1693615182387,111.77199917,19.436,19.432,0.12402313]
[1693615186295,111.71,19.436,19.429,111.71]
[1693615187491,111.77199917,19.436,19.429,111.71]
[1693615188302,0.06199917,19.436,19.431,111.71]
[1693615188492,0.06199917,19.436,19.434,111.71]
[1693615190793,111.71,19.442,19.436,0.06199916]
[1693615190999,111.71,19.445,19.438,15.44]
[1693615192006,111.71,19.447,19.44,15.44]
[1693615193104,111.71,19.447,19.439,111.71]
[1693615193305,111.71,19.445,19.437,111.71]
[1693615199210,111.71,19.441,19.436,0.06199916]
[1693615202101,111.71,19.439,19.436,0.06199916]
[1693615202502,111.71,19.439,19.431,111.71]
[1693615203613,0.06199903,19.436,19.431,111.71]
[1693615207010,0.06199903,19.436,19.432,0.12402285]
[1693615217619,111.71,19.439,19.431,111.71]
[1693615218621,0.06199903,19.436,19.431,111.71]
[1693615221917,0.06199903,19.436,19.431,15.43]
[1693615222124,0.06199903,19.436,19.432,0.12402285]
[1693615223526,0.06199903,19.436,19.434,15.43]
[1693615226022,0.06199903,19.436,19.432,111.83402285]
[1693615229232,111.71,19.433,19.432,0.12402285]
[1693615229428,111.71,19.433,19.432,0.06188764]
[1693615231333,111.71,19.433,19.426,20.5683]
[1693615231524,111.71,19.433,19.425,111.71]
[1693615232029,111.71,19.431,19.423,127.14]
[1693615232229,111.71,19.431,19.423,111.71]
[1693615235834,111.71,19.431,19.428,0.12404838]
[1693615236338,111.71,19.429,19.424,0.1861098]
[1693615236540,111.71,19.427,19.424,0.1861098]
[1693615239436,111.71,19.425,19.424,0.1861098]
[1693615239733,111.71,19.425,19.42,0.24819606]
[1693615239932,111.71,19.421,19.42,0.24819606]
[1693615242442,111.71,19.422,19.42,0.24819606]
[1693615242742,111.71,19.422,19.415,15.43]
[1693615245942,111.71,19.419,19.411,111.71]
[1693615247241,111.71,19.419,19.416,0.18618637]
[1693615248745,111.71,19.419,19.411,111.71]
[1693615254448,111.71,19.421,19.413,111.71]
[1693615256048,111.71,19.42,19.412,111.71]
[1693615264659,111.71,19.417,19.409,133.2059]
[1693615264860,111.71,19.417,19.409,111.71]
[1693615271973,111.71,19.415,19.407,152.33615859]
[1693615279375,111.71,19.415,19.407,111.71]
[1693615282075,111.71,19.413,19.407,15.45]
[1693615297486,111.71,19.408,19.401,15.45]
[1693615302090,111.71,19.41,19.402,111.71]
[1693615306894,111.71,19.413,19.407,15.45]
[1693615315893,111.71,19.413,19.405,111.71]
[1693615316102,111.71,19.41,19.404,15.45]
[1693615316293,111.71,19.41,19.404,0.45454546]
[1693615316495,111.71,19.409,19.402,121.63108143]
[1693615316800,111.71,19.409,19.404,15.45]
[1693615317099,111.71,19.409,19.404,0.45454546]
[1693615317299,111.71,19.409,19.404,15.45]
[1693615317494,111.71,19.409,19.404,15.90454546]
[1693615317695,111.71,19.409,19.404,0.45454546]
[1693615317994,111.71,19.409,19.404,15.45]
[1693615318201,111.71,19.409,19.404,15.90454546]
[1693615318393,111.71,19.409,19.404,0.45454546]
[1693615318592,111.71,19.409,19.404,15.45]
[1693615318795,111.71,19.409,19.404,15.90454546]
[1693615318998,111.71,19.409,19.404,0.45454546]
[1693615319296,111.71,19.409,19.404,15.45]
[1693615319499,111.71,19.409,19.404,0.45454546]
[1693615319701,111.71,19.409,19.404,15.45]
[1693615319896,111.71,19.409,19.404,0.45454546]
[1693615320098,111.71,19.409,19.404,15.45]
[1693615320297,111.71,19.409,19.404,15.90454546]
[1693615320494,111.71,19.409,19.402,111.71]
[1693615320703,111.71,19.406,19.401,15.45]
[1693615321599,111.71,19.406,19.399,277.00908824]
[1693615321804,111.71,19.406,19.398,111.71]
[1693615322002,111.71,19.404,19.396,111.71]
[1693615322500,111.71,19.404,19.396,430.33226488]
[1693615322803,111.71,19.404,19.398,15.45]
[1693615324105,111.71,19.407,19.399,111.71]
[1693615331907,111.71,19.407,19.398,15.45]
[1693615332113,111.71,19.406,19.398,111.71]
[1693615332315,111.71,19.406,19.398,127.16]
[1693615333914,111.71,19.406,19.398,111.71]
[1693615336711,111.71,19.408,19.401,15.45]
[1693615337314,111.71,19.412,19.404,111.71]
[1693615337717,111.71,19.415,19.407,111.71]
[1693615347825,111.71,19.415,19.407,153.72853758]
[1693615360535,111.71,19.415,19.408,111.71]